bitfinex/quotes_SOLUSD_20240809
["timestamp","ask_amount","ask_price","bid_price","bid_amount"]
[1723188151722,34.36,158.61,158.57,6.3061]
[1723188152719,40.6648,158.61,158.56,22.0734]
[1723188152912,40.6648,158.61,158.56,15.7667]
[1723188152913,6.3052,158.6,158.56,15.7667]
[1723188153108,6.3051,158.6,158.55,6.307]
[1723188153825,26.76,158.59,158.55,6.307]
[1723188154194,26.76,158.57,158.55,6.307]
[1723188154418,26.76,158.59,158.56,6.3067]
[1723188157193,26.3047,158.62,158.58,6.3058]
[1723188157194,26.76,158.6,158.58,6.3058]
[1723188157723,26.76,158.6,158.55,17.02903583]
[1723188157724,26.76,158.59,158.55,15.7678]
[1723188158600,32.4144,158.62,158.56,6.3067]
[1723188158927,32.4144,158.62,158.55,22.0749]
[1723188158928,26.76,158.58,158.55,22.0749]
[1723188159101,26.76,158.58,158.56,6.3066]
[1723188160633,26.76,158.59,158.56,6.3066]
[1723188161430,26.76,158.59,158.57,6.3062]
[1723188163035,26.76,158.59,158.58,6.3059]
[1723188163331,26.76,158.61,158.57,15.765]
[1723188163504,26.76,158.6,158.58,6.3059]
[1723188163704,20.0,158.62,158.59,6.3055]
[1723188163926,26.76,158.61,158.59,6.3055]
[1723188164319,26.76,158.61,158.57,15.765]
[1723188164534,26.76,158.6,158.57,15.765]
[1723188164829,26.76,158.61,158.59,6.3055]
[1723188165629,26.76,158.61,158.58,6.3059]
[1723188166137,26.76,158.6,158.57,15.765]
[1723188166313,26.76,158.59,158.57,15.765]
[1723188166643,26.76,158.58,158.57,15.765]
[1723188166927,20.0,158.63,158.57,15.765]
[1723188168023,26.76,158.6,158.58,6.3056]
[1723188168233,26.304,158.63,158.58,6.3056]
[1723188168534,20.0,158.63,158.59,6.3053]
[1723188168731,6.3039,158.64,158.59,6.3053]
[1723188169126,20.0,158.63,158.59,6.3053]
[1723188169335,20.0,158.63,158.57,15.765]
[1723188169724,6.3044,158.62,158.57,22.0709]
[1723188169948,20.0,158.65,158.57,15.765]
[1723188170838,26.76,158.6,158.57,15.765]
[1723188171027,26.76,158.6,158.58,6.3059]
[1723188171341,6.3036,158.64,158.59,6.3055]
[1723188171533,20.0,158.63,158.59,6.3055]
[1723188172453,26.76,158.6,158.59,6.3055]
[1723188172638,26.76,158.61,158.6,6.3051]
[1723188172840,20.0,158.63,158.61,6.3046]
[1723188173031,26.3032,158.65,158.6,6.3051]
[1723188173926,6.3036,158.64,158.59,22.0684]
[1723188174139,26.76,158.62,158.59,22.0684]
[1723188174342,26.76,158.62,158.6,6.3051]
[1723188174526,20.0,158.63,158.6,6.3051]
[1723188174848,26.3036,158.64,158.59,22.0684]
[1723188175043,26.76,158.62,158.59,22.0684]
[1723188175244,26.76,158.62,158.6,6.3051]
[1723188175623,26.76,158.63,158.6,6.3051]
[1723188176535,26.76,158.65,158.59,15.763]
[1723188176860,6.1819,158.71,158.6,1.26088182]
[1723188177029,6.1819,158.71,158.61,1.26069085]
[1723188177559,6.302,158.68,158.63,22.0629]
[1723188177737,26.76,158.67,158.63,22.0629]
[1723188178054,26.76,158.66,158.63,22.0629]
[1723188178356,26.76,158.66,158.63,15.759]
[1723188179025,26.76,158.68,158.64,6.3032]
[1723188179240,6.3008,158.71,158.66,6.3027]
[1723188180038,26.76,158.71,158.65,15.7571]
[1723188180252,26.76,158.72,158.68,6.3018]
[1723188180463,26.76,158.72,158.67,15.7551]
[1723188180664,26.76,158.72,158.69,6.3015]
[1723188181235,6.2996,158.74,158.69,6.3015]
[1723188181236,26.76,158.73,158.69,6.3015]
[1723188181546,29.22907351,158.73,158.69,6.3015]
[1723188182050,35.52907351,158.73,158.68,6.3019]
[1723188182256,26.76,158.72,158.68,6.3019]
[1723188182459,33.0616,158.69,158.63,22.0634]
[1723188182644,6.3016,158.69,158.64,6.3035]
[1723188183676,26.76,158.68,158.64,6.3035]
[1723188183861,33.062,158.68,158.63,22.0637]
[1723188184063,6.3014,158.7,158.64,6.3034]
[1723188184252,20.0,158.69,158.64,6.3034]
[1723188184859,20.0,158.69,158.65,6.303]
[1723188185043,20.0,158.74,158.65,6.303]
[1723188185369,26.76,158.66,158.6,15.7627]
[1723188185549,26.76,158.64,158.61,6.3047]
[1723188187677,26.76,158.64,158.62,6.3043]
[1723188187849,26.76,158.64,158.61,6.3047]
[1723188188046,26.76,158.64,158.6,15.7627]
[1723188188270,26.76,158.64,158.6,22.0678]
[1723188188474,26.76,158.63,158.6,22.0678]
[1723188189159,26.76,158.64,158.61,6.3047]
[1723188190960,26.76,158.64,158.62,6.3043]
[1723188191192,6.3024,158.67,158.62,6.3043]
[1723188191356,20.0,158.66,158.62,15.76]
[1723188191879,20.0,158.66,158.63,6.3039]
[1723188192268,20.0,158.71,158.64,6.3034]
[1723188192488,26.76,158.67,158.64,6.3034]
[1723188192988,2.54189336,158.72,158.65,17.01825937]
[1723188193155,15.6159,158.73,158.68,15.7548]
[1723188193361,16.6218,158.77,158.66,19.5662]
[1723188193564,16.6218,158.77,158.7,22.0532]
[1723188193565,26.76,158.74,158.7,22.0532]
[1723188194087,26.76,158.74,158.7,15.7521]
[1723188194266,33.0597,158.74,158.7,15.7521]
[1723188194459,26.76,158.71,158.67,15.7558]
[1723188194985,26.76,158.71,158.67,22.058]
[1723188195554,33.0608,158.71,158.67,15.7558]
[1723188195757,26.76,158.7,158.67,15.7558]
[1723188196184,26.76,158.7,158.67,22.0581]
[1723188196977,26.76,158.7,158.67,15.7558]
[1723188197175,34.8176918,158.77,158.65,6.3031]
[1723188197382,65.0,158.76,158.65,6.3031]
[1723188197771,6.3015,158.7,158.64,6.3034]
[1723188197980,20.0,158.69,158.64,6.3034]
[1723188198371,20.0,158.69,158.63,15.7592]
[1723188198583,6.3028,158.66,158.59,15.763]
[1723188198778,26.3032,158.65,158.6,6.3051]
[1723188198980,6.3028,158.66,158.61,6.3047]
[1723188199185,20.0,158.65,158.61,6.3047]
[1723188199981,26.76,158.64,158.61,6.3047]
[1723188203868,26.76,158.64,158.6,6.3051]
[1723188204072,26.76,158.63,158.59,15.763]
[1723188204376,15.6554,158.7,158.59,15.763]
[1723188204582,45.0,158.69,158.59,15.763]
[1723188204892,20.0,158.68,158.59,15.763]
[1723188205094,6.3036,158.64,158.59,22.0685]
[1723188205396,26.76,158.62,158.59,15.763]
[1723188205593,26.76,158.6,158.56,15.7668]
[1723188205805,26.76,158.6,158.57,6.3063]
[1723188205978,26.76,158.6,158.58,6.3058]
[1723188206181,26.76,158.61,158.58,6.3058]
[1723188207293,26.76,158.61,158.59,6.3055]
[1723188208199,26.76,158.61,158.58,6.3059]
[1723188208884,26.76,158.6,158.58,6.3059]
[1723188209274,26.76,158.59,158.56,15.7668]
[1723188209471,26.76,158.57,158.56,15.7668]
[1723188210590,26.76,158.59,158.56,15.7668]
[1723188211100,26.76,158.59,158.57,6.3063]
[1723188211612,26.76,158.6,158.58,6.3059]
[1723188213397,26.76,158.59,158.56,15.7668]
[1723188213605,26.76,158.58,158.56,15.7668]
[1723188213778,26.76,158.58,158.56,22.0734]
[1723188216199,26.76,158.57,158.56,15.7668]
[1723188218812,26.76,158.58,158.56,22.0735]
[1723188221815,26.76,158.58,158.56,15.7668]
[1723188222000,26.76,158.57,158.56,15.7668]
[1723188222601,26.76,158.57,158.53,22.9054147]
[1723188222807,45.0,158.62,158.53,22.9054147]
[1723188223215,20.0,158.61,158.53,22.9054147]
[1723188223525,6.3063,158.58,158.54,6.3075]
[1723188223716,26.76,158.55,158.53,0.8282147]
[1723188223920,35.7625,158.61,158.53,0.8282147]
[1723188223921,26.76,158.54,158.53,0.8282147]
[1723188224408,35.7625,158.61,158.53,0.8282147]
[1723188224605,45.0,158.6,158.53,0.8282147]
[1723188224805,20.0,158.59,158.53,0.8282147]
[1723188224997,6.3063,158.57,158.53,0.8282147]
[1723188225431,26.76,158.55,158.53,0.8282147]
[1723188226631,20.0,158.59,158.53,0.8282147]
[1723188226632,26.76,158.54,158.53,0.8282147]
[1723188227325,26.76,158.55,158.53,7.1361147]
[1723188227622,15.7625,158.61,158.53,7.1361147]
[1723188227623,49.1656,158.64,158.53,16.5973147]
[1723188227834,6.3056,158.59,158.54,6.3074]
[1723188229425,26.76,158.57,158.54,6.3074]
[1723188231137,26.76,158.56,158.53,16.5973147]
[1723188232026,49.1656,158.64,158.53,16.5973147]
[1723188232243,33.0675,158.54,158.53,0.8282147]
[1723188235139,53.0675,158.54,158.53,0.8282147]
[1723188237826,98.0675,158.54,158.53,0.8282147]
[1723188238136,98.0675,158.54,158.47,22.0857]
[1723188238137,6.3084,158.52,158.47,22.0857]
[1723188238647,6.3087,158.51,158.47,15.7756]
[1723188238848,6.3084,158.52,158.47,22.0859]
[1723188239249,26.76,158.48,158.47,15.7756]
[1723188239436,26.76,158.48,158.44,15.7787]
[1723188239626,26.76,158.48,158.45,6.311]
[1723188240040,6.3087,158.51,158.46,6.3107]
[1723188240248,6.3079,158.53,158.48,6.3099]
[1723188240421,26.76,158.51,158.48,6.3099]
[1723188240861,26.76,158.52,158.49,6.3094]
[1723188241038,20.0,158.54,158.51,6.3086]
[1723188241234,21.9287,158.56,158.51,6.3086]
[1723188241447,21.9289,158.56,158.51,6.3086]
[1723188241645,6.3076,158.54,158.49,15.7737]
[1723188241827,15.622,158.56,158.47,6.3102]
[1723188242036,6.308,158.53,158.48,6.3098]
[1723188242848,26.76,158.5,158.46,22.0872]
[1723188243030,18.29805493,158.57,158.46,15.7766]
[1723188243227,6.3075,158.55,158.49,6.3094]
[1723188243427,6.3068,158.56,158.48,15.774]
[1723188244040,6.3071,158.55,158.5,6.309]
[1723188244246,33.0671,158.55,158.5,6.309]
[1723188244627,6.3075,158.54,158.49,6.3094]
[1723188244829,6.3071,158.55,158.5,6.309]
[1723188245528,16.6339,158.58,158.48,15.774]
[1723188245732,26.76,158.53,158.48,15.774]
[1723188246951,26.76,158.54,158.48,15.774]
[1723188247258,26.76,158.55,158.48,15.774]
[1723188247457,26.76,158.55,158.51,6.3085]
[1723188247633,6.3066,158.57,158.52,6.3082]
[1723188248028,33.0668,158.56,158.51,6.3086]
[1723188248559,6.3072,158.55,158.5,22.0812]
[1723188248939,6.3075,158.54,158.5,15.7721]
[1723188249344,6.3072,158.55,158.5,22.0812]
[1723188249548,26.76,158.54,158.5,22.0812]
[1723188250230,33.0675,158.54,158.5,22.0812]
[1723188250453,26.76,158.54,158.5,22.0812]
[1723188251336,26.76,158.56,158.52,6.308]
[1723188252155,16.6339,158.58,158.53,6.3077]
[1723188252352,26.76,158.56,158.53,6.3077]
[1723188252543,26.76,158.56,158.52,6.3082]
[1723188254359,43.3939,158.58,158.53,6.3079]
[1723188255554,49.6999,158.58,158.52,6.3082]
[1723188255853,18.35,158.56,158.52,6.3082]
[1723188256355,18.35,158.56,158.53,6.3079]
[1723188256858,18.35,158.55,158.51,24.6587]
[1723188257158,18.35,158.55,158.5,34.1221]
[1723188257732,18.35,158.55,158.51,18.35]
[1723188259049,18.35,158.55,158.51,24.6584]
[1723188259253,22.9399,158.58,158.51,18.35]
[1723188259456,18.35,158.56,158.53,6.3079]
[1723188260971,18.35,158.56,158.52,24.6582]
[1723188262444,18.35,158.56,158.52,18.35]
[1723188263054,18.35,158.55,158.51,6.3087]
[1723188263260,18.35,158.54,158.5,22.0812]
[1723188263971,18.35,158.53,158.49,6.3094]
[1723188264151,18.35,158.53,158.48,18.35]
[1723188264473,18.35,158.53,158.46,22.2695]
[1723188265057,18.35,158.53,158.49,6.3094]
[1723188266552,18.35,158.52,158.49,6.3094]
[1723188266757,18.35,158.51,158.46,22.2695]
[1723188266967,18.35,158.51,158.48,6.3098]
[1723188267280,6.3077,158.54,158.48,6.3098]
[1723188267871,18.35,158.51,158.48,6.3098]
[1723188270367,18.35,158.51,158.47,6.3102]
[1723188271175,18.35,158.51,158.48,6.3098]
[1723188271875,16.6339,158.58,158.49,6.3094]
[1723188272058,18.35,158.53,158.49,6.3094]
[1723188272249,19.16837676,158.58,158.49,15.7738]
[1723188272451,263.58299611,158.62,158.5,19.5034]
[1723188272452,6.58299611,158.62,158.5,19.5034]
[1723188272670,22.0841,158.64,158.57,6.3062]
[1723188273075,6.304,158.63,158.57,6.3062]
[1723188273275,6.304,158.63,158.56,22.0728]
[1723188273462,18.35,158.6,158.56,40.4228]
[1723188273853,6.3043,158.62,158.56,22.0728]
[1723188274751,6.304,158.63,158.56,22.0728]
[1723188274954,26.75,158.61,158.56,22.0728]
[1723188275567,26.75,158.6,158.56,15.7661]
[1723188275772,26.75,158.58,158.52,15.7703]
[1723188275969,26.75,158.57,158.52,15.7703]
[1723188276172,26.75,158.57,158.53,6.3076]
[1723188276390,42.5305,158.64,158.52,15.7703]
[1723188276589,65.0,158.63,158.52,15.7703]
[1723188276877,26.75,158.58,158.52,15.7703]
[1723188277179,26.75,158.58,158.54,6.3071]
[1723188278279,26.75,158.58,158.53,6.3078]
[1723188278475,26.75,158.57,158.53,6.3078]
[1723188279198,6.3057,158.59,158.52,22.0785]
[1723188279392,20.0,158.58,158.52,22.0785]
[1723188280203,26.75,158.56,158.53,6.3078]
[1723188280803,20.0,158.58,158.53,6.3078]
[1723188281774,26.75,158.57,158.53,6.3078]
[1723188282305,20.0,158.58,158.53,6.3078]
[1723188282601,26.75,158.56,158.53,6.3078]
[1723188283381,26.75,158.56,158.52,22.0786]
[1723188283587,26.75,158.56,158.52,15.7703]
[1723188283894,6.3064,158.57,158.52,15.7703]
[1723188284585,26.75,158.54,158.52,15.7703]
[1723188285582,22.5405,158.57,158.52,22.0786]
[1723188285583,26.75,158.55,158.52,22.0786]
[1723188286284,26.75,158.56,158.53,6.3078]
[1723188287592,26.75,158.56,158.52,22.0785]
[1723188288406,26.306,158.58,158.52,15.7703]
[1723188288407,20.0,158.58,158.52,15.7703]
[1723188288585,26.3055,158.59,158.53,6.3078]
[1723188288781,26.3055,158.59,158.52,15.7703]
[1723188288782,26.75,158.57,158.52,15.7703]
[1723188288987,26.75,158.56,158.52,15.7703]
[1723188289300,26.3055,158.59,158.52,15.7703]
[1723188289501,26.3055,158.59,158.53,6.3078]
[1723188289679,20.0,158.59,158.52,15.7703]
[1723188289879,26.75,158.57,158.52,15.7703]
[1723188290175,26.75,158.57,158.53,6.3076]
[1723188291398,26.75,158.57,158.54,6.3075]
[1723188292410,15.5511,158.61,158.54,15.7681]
[1723188292702,15.5511,158.61,158.57,6.3063]
[1723188292904,15.5511,158.61,158.56,6.3066]
[1723188293605,6.5456,158.65,158.54,15.7681]
[1723188293606,22.6671,158.65,158.54,15.7681]
[1723188293800,20.0,158.64,158.56,6.3067]
[1723188294006,26.75,158.6,158.56,6.3067]
[1723188294792,26.75,158.59,158.54,22.0756]
[1723188295699,18.35,158.57,158.54,22.0756]
[1723188297398,18.35,158.58,158.54,15.7681]
[1723188297804,93.4,158.64,158.57,6.3063]
[1723188298006,93.4,158.64,158.54,17.02950882]
[1723188298007,6.304,158.63,158.58,6.3059]
[1723188298205,20.0,158.62,158.57,6.3062]
[1723188298403,18.35,158.6,158.57,6.3062]
[1723188298987,20.0,158.62,158.58,6.3059]
[1723188299196,18.35,158.61,158.58,6.3059]
[1723188299614,18.35,158.61,158.57,6.3063]
[1723188299789,18.35,158.6,158.56,22.0727]
[1723188299990,18.35,158.6,158.56,15.766]
[1723188300219,18.35,158.6,158.57,6.306]
[1723188300393,18.35,158.61,158.58,6.3059]
[1723188300924,22.6671,158.65,158.58,34.1141]
[1723188301092,16.1215,158.65,158.61,6.3047]
[1723188301409,16.1215,158.65,158.59,1.26097887]
[1723188301410,278.7142,158.69,158.59,1.26097887]
[1723188301590,18.35,158.68,158.63,18.35]
[1723188301992,18.35,158.68,158.63,24.6539]
[1723188302298,18.35,158.67,158.63,24.6539]
[1723188303306,18.35,158.67,158.62,34.1101]
[1723188303701,33.0321,158.68,158.62,22.0642]
[1723188304294,33.0321,158.68,158.6,26.73]
[1723188304295,26.73,158.68,158.6,26.73]
[1723188304502,26.73,158.64,158.59,6.3052]
[1723188305015,26.73,158.64,158.6,6.3051]
[1723188305214,26.73,158.65,158.6,6.3051]
[1723188305525,26.73,158.65,158.58,22.0695]
[1723188305702,20.0,158.67,158.55,19.8839]
[1723188305703,26.73,158.61,158.55,35.6515]
[1723188306022,26.5331,158.67,158.58,15.7641]
[1723188306198,26.5331,158.67,158.56,1.26103048]
[1723188306398,26.5331,158.67,158.55,51.4182]
[1723188306399,20.0,158.67,158.62,6.304]
[1723188307613,26.73,158.66,158.61,6.3047]
[1723188307829,20.0,158.67,158.57,15.7657]
[1723188308017,18.24260895,158.69,158.58,6.3058]
[1723188308018,6.3035,158.64,158.58,6.3058]
[1723188308322,20.0,158.68,158.57,15.7657]
[1723188308521,26.73,158.66,158.6,15.7626]
[1723188308818,24.54420895,158.69,158.63,6.3038]
[1723188309022,33.0319,158.68,158.63,6.3038]
[1723188309598,26.73,158.67,158.61,6.3044]
[1723188310009,15.7048,158.69,158.6,15.7626]
[1723188310212,65.0,158.68,158.6,15.7626]
[1723188310923,26.73,158.64,158.6,22.0677]
[1723188311527,26.73,158.63,158.57,15.7658]
[1723188311892,65.0,158.68,158.57,15.7658]
[1723188312096,26.73,158.62,158.57,15.7658]
[1723188312924,26.73,158.62,158.59,6.3055]
[1723188313221,80.755,158.68,158.59,6.3055]
[1723188313726,6.3037,158.64,158.58,6.3058]
[1723188314030,46.73,158.63,158.58,6.3058]
[1723188314529,26.73,158.62,158.58,6.3058]
[1723188314828,26.73,158.62,158.57,15.7658]
[1723188315126,26.73,158.62,158.57,22.072]
[1723188315322,26.73,158.62,158.58,6.3059]
[1723188316207,26.73,158.61,158.57,22.0721]
[1723188316400,26.73,158.59,158.56,6.3067]
[1723188316624,15.4912,158.62,158.56,6.3067]
[1723188316625,26.73,158.6,158.56,6.3067]
[1723188316927,21.7959,158.62,158.56,6.3067]
[1723188317220,20.0,158.61,158.56,6.3067]
[1723188317616,26.73,158.6,158.57,6.3063]
[1723188317933,6.3035,158.64,158.58,6.3055]
[1723188318122,20.0,158.63,158.58,6.3055]
[1723188319037,26.73,158.62,158.57,22.072]
[1723188319535,20.0,158.64,158.54,15.7687]
[1723188320305,6.3047,158.62,158.56,6.3067]
[1723188320510,26.73,158.6,158.56,6.3067]
[1723188320717,26.73,158.6,158.55,6.307]
[1723188321019,26.73,158.6,158.56,6.3067]
[1723188322641,26.73,158.6,158.54,22.0759]
[1723188322846,26.73,158.59,158.54,22.0759]
[1723188323250,6.3052,158.6,158.54,22.0759]
[1723188323549,20.0,158.59,158.54,22.0759]
[1723188324449,26.73,158.58,158.54,22.0759]
[1723188325443,6.3048,158.61,158.55,6.307]
[1723188325649,26.73,158.59,158.55,6.307]
[1723188325851,6.3048,158.61,158.55,6.307]
[1723188326155,20.0,158.6,158.55,6.307]
[1723188327347,8.54709964,158.65,158.55,18.35]
[1723188327550,8.54709964,158.65,158.51,19.8181]
[1723188327551,18.35,158.6,158.57,15.7656]
[1723188327731,6.3035,158.64,158.58,6.3059]
[1723188328122,6.3041,158.63,158.57,15.7656]
[1723188328749,18.35,158.61,158.57,15.7656]
[1723188329128,18.35,158.61,158.57,22.0716]
[1723188329319,6.304,158.63,158.57,22.0716]
[1723188329531,18.35,158.58,158.54,15.7686]
[1723188329845,6.3049,158.61,158.56,6.3067]
[1723188330246,6.3044,158.62,158.56,6.3067]
[1723188330438,20.0,158.61,158.56,6.3067]
[1723188330648,18.35,158.58,158.55,6.3071]
[1723188330854,18.35,158.57,158.55,6.3071]
[1723188331322,18.35,158.56,158.54,22.076]
[1723188331851,18.35,158.57,158.55,6.3071]
[1723188332042,20.0,158.61,158.56,6.3065]
[1723188332554,26.3047,158.61,158.55,6.307]
[1723188332744,20.0,158.61,158.56,6.3066]
[1723188333055,18.35,158.61,158.59,6.3055]
[1723188334057,14.85029964,158.65,158.57,19.61116255]
[1723188334058,18.35,158.6,158.57,6.3059]
[1723188334233,18.35,158.61,158.58,6.3059]
[1723188335553,18.35,158.62,158.58,6.3059]
[1723188336253,6.3032,158.65,158.59,6.3054]
[1723188336452,20.0,158.64,158.59,6.3054]
[1723188337356,18.35,158.62,158.59,6.3054]
[1723188338562,20.0,158.64,158.58,15.7641]
[1723188338563,18.35,158.6,158.58,15.7641]
[1723188339254,20.0,158.64,158.58,15.7641]
[1723188339574,26.3032,158.65,158.58,15.7641]
[1723188339771,26.3032,158.65,158.58,34.1141]
[1723188339772,18.35,158.62,158.58,34.1141]
[1723188340071,20.0,158.65,158.6,18.35]
[1723188340376,20.0,158.65,158.61,6.3044]
[1723188340377,18.35,158.64,158.61,6.3044]
[1723188341560,18.35,158.64,158.6,22.0672]
[1723188341769,18.35,158.63,158.6,22.0672]
[1723188342148,20.0,158.65,158.61,6.3045]
[1723188342344,15.0348,158.66,158.61,6.3045]
[1723188342774,20.0,158.65,158.61,6.3045]
[1723188343669,18.35,158.63,158.61,6.3045]
[1723188344372,18.35,158.63,158.6,15.7621]
[1723188344578,18.35,158.63,158.6,22.0671]
[1723188344868,18.35,158.64,158.61,6.3046]
[1723188346986,15.0348,158.66,158.61,6.3046]
[1723188347790,8.72193352,158.69,158.6,15.7621]
[1723188347991,18.35,158.65,158.63,6.3039]
[1723188348973,18.35,158.66,158.63,6.3039]
[1723188350790,18.35,158.65,158.61,6.3044]
[1723188351179,18.35,158.65,158.62,6.3043]
[1723188351475,18.35,158.65,158.61,6.3047]
[1723188351667,18.35,158.64,158.61,6.3047]
[1723188352385,18.35,158.63,158.6,22.0671]
[1723188352696,18.35,158.62,158.59,6.3055]
[1723188352896,18.35,158.62,158.6,6.3051]
[1723188353212,6.3032,158.65,158.58,6.3055]
[1723188353503,6.3032,158.65,158.59,6.3055]
[1723188353683,26.3036,158.64,158.58,6.3059]
[1723188354200,18.35,158.61,158.59,6.3055]
[1723188355603,18.35,158.62,158.59,6.3055]
[1723188356297,18.35,158.61,158.59,6.3055]
[1723188356671,18.35,158.61,158.57,34.1155]
[1723188356672,18.35,158.62,158.6,6.3051]
[1723188356872,18.35,158.63,158.6,15.7625]
[1723188357088,18.35,158.64,158.6,34.1125]
[1723188357880,18.35,158.64,158.62,6.3043]
[1723188359292,18.35,158.64,158.61,6.3047]
[1723188359481,18.35,158.63,158.61,6.3047]
[1723188360298,6.3024,158.67,158.61,6.3047]
[1723188360497,20.0,158.66,158.61,6.3047]
[1723188360805,20.0,158.66,158.6,22.0675]
[1723188360806,18.35,158.63,158.6,22.0675]
[1723188361413,18.35,158.62,158.6,22.0675]
[1723188361597,20.0,158.66,158.53,19.5572]
[1723188361803,6.2693,158.69,158.53,19.5572]
[1723188361804,15.7566,158.67,158.57,15.7657]
[1723188362104,45.0,158.66,158.57,15.7657]
[1723188362308,6.3037,158.64,158.58,6.3058]
[1723188362672,73.4,158.64,158.58,6.3058]
[1723188362902,18.35,158.61,158.59,6.3052]
[1723188363611,18.35,158.6,158.59,6.3052]
[1723188363818,18.35,158.6,158.53,35.3262]
[1723188364108,18.35,158.59,158.57,6.3063]
[1723188364309,90.0649,158.64,158.58,6.3059]
[1723188364310,22.9684,158.64,158.58,6.3059]
[1723188364609,20.0,158.63,158.59,6.3055]
[1723188364903,18.35,158.6,158.58,6.3059]
[1723188365114,18.35,158.59,158.57,6.3062]
[1723188365300,2.4594818,158.65,158.59,15.7632]
[1723188365488,18.35,158.62,158.59,15.7632]
[1723188365804,18.35,158.62,158.59,17.0241585]
[1723188366107,18.35,158.62,158.6,6.3048]
[1723188366408,18.35,158.61,158.59,22.0687]
[1723188366581,6.3027,158.66,158.59,22.0687]
[1723188366778,20.0,158.65,158.59,22.0687]
[1723188367004,20.0,158.65,158.6,6.3051]
[1723188367305,26.3035,158.65,158.59,22.0686]
[1723188367484,18.35,158.61,158.59,15.7632]
[1723188367706,18.35,158.61,158.59,22.0685]
[1723188367908,20.0,158.65,158.59,22.0687]
[1723188368103,18.35,158.61,158.59,22.0687]
[1723188368421,18.35,158.61,158.59,15.7632]
[1723188368631,6.3035,158.64,158.57,6.3063]
[1723188368918,18.35,158.59,158.56,6.3066]
[1723188369333,6.3043,158.62,158.56,6.3066]
[1723188369633,6.3047,158.62,158.51,15.7709]
[1723188369799,6.3052,158.6,158.54,6.3074]
[1723188370127,71.3047,158.61,158.54,6.3074]
[1723188370324,51.3047,158.61,158.54,6.3074]
[1723188370627,18.35,158.55,158.54,6.3074]
[1723188370801,18.35,158.55,158.53,6.3079]
[1723188371125,51.3051,158.61,158.51,15.7709]
[1723188371325,20.0,158.6,158.55,6.307]
[1723188371897,18.35,158.57,158.54,22.0761]
[1723188372100,18.35,158.56,158.54,22.0761]
[1723188372322,18.35,158.56,158.54,15.7686]
[1723188372624,20.0,158.6,158.54,22.0761]
[1723188373003,26.3051,158.6,158.54,22.0761]
[1723188373204,26.3051,158.6,158.54,15.7686]
[1723188373621,18.35,158.56,158.54,15.7686]
[1723188373794,18.35,158.56,158.53,6.3079]
[1723188373795,18.35,158.56,158.52,6.3083]
[1723188374198,18.35,158.56,158.52,18.35]
[1723188374399,18.35,158.56,158.5,15.7721]
[1723188374630,18.35,158.54,158.5,15.7721]